[Event "Titled Tuesday Blitz February 07 Early 2023"]
[White "Ardila, Oscar Humberto"]
[Black "Piesik, Piotr"]
[WhiteFideId "4404742"]
[BlackFideId "1136194"]
[WhiteElo "1982"]
[BlackElo "2426"]
[Result "0-1"]
[Round "10"]
[TimeControl "180+2"]
[Date "2023.02.07"]
[WhiteClock "0:01:27"]
[BlackClock "0:01:57"]

1. d4 {[%clk 0:02:59]}  c5 {[%clk 0:02:59]} 2. Nf3 {[%clk 0:02:57]}  cxd4 {[%clk 0:02:58]} 3. Nxd4 {[%clk 0:02:57]}  d5 {[%clk 0:02:59]} 4. Nf3 {[%clk 0:02:55]}  Nc6 {[%clk 0:02:58]} 5. e3 {[%clk 0:02:54]}  e5 {[%clk 0:02:58]} 6. Be2 {[%clk 0:02:54]}  Nf6 {[%clk 0:02:58]} 7. O-O {[%clk 0:02:54]}  Be7 {[%clk 0:02:56]} 8. Nbd2 {[%clk 0:02:54]}  e4 {[%clk 0:02:54]} 9. Nd4 {[%clk 0:02:53]}  Nxd4 {[%clk 0:02:54]} 10. exd4 {[%clk 0:02:53]}  O-O {[%clk 0:02:54]} 11. Re1 {[%clk 0:02:51]}  Be6 {[%clk 0:02:52]} 12. Nf1 {[%clk 0:02:51]}  Rc8 {[%clk 0:02:51]} 13. c3 {[%clk 0:02:50]}  Qb6 {[%clk 0:02:50]} 14. h3 {[%clk 0:02:49]}  Bd6 {[%clk 0:02:49]} 15. Qb3 {[%clk 0:02:47]}  Qc6 {[%clk 0:02:47]} 16. Be3 {[%clk 0:02:45]}  Bb8 {[%clk 0:02:46]} 17. Rac1 {[%clk 0:02:39]}  Nd7 {[%clk 0:02:37]} 18. Qb5 {[%clk 0:02:32]}  Qc7 {[%clk 0:02:35]} 19. a4 {[%clk 0:02:23]}  a6 {[%clk 0:02:33]} 20. Qb4 {[%clk 0:02:19]}  f5 {[%clk 0:02:28]} 21. g3 {[%clk 0:02:12]}  f4 {[%clk 0:02:23]} 22. Bxf4 {[%clk 0:02:11]}  Rxf4 {[%clk 0:02:23]} 23. gxf4 {[%clk 0:02:11]}  Bxh3 {[%clk 0:02:21]} 24. Ng3 {[%clk 0:01:53]}  Nf6 {[%clk 0:02:20]} 25. c4 {[%clk 0:01:43]}  Qxf4 {[%clk 0:02:18]} 26. cxd5 {[%clk 0:01:43]}  Rxc1 {[%clk 0:02:17]} 27. Rxc1 {[%clk 0:01:43]}  Qxc1+ {[%clk 0:02:16]} 28. Kh2 {[%clk 0:01:43]}  Qh6 {[%clk 0:02:02]} 29. Kg1 {[%clk 0:01:37]}  Bxg3 {[%clk 0:02:01]} 30. fxg3 {[%clk 0:01:37]}  Qe3+ {[%clk 0:02:00]} 31. Kh2 {[%clk 0:01:36]}  Qxe2+ {[%clk 0:01:59]} 32. Kxh3 {[%clk 0:01:36]}  Qf1+ {[%clk 0:01:59]} 33. Kh4 {[%clk 0:01:36]}  h6 {[%clk 0:01:57]} 34. g4 {[%clk 0:01:30]}  Qg2 {[%clk 0:01:57]} 35. g5 {[%clk 0:01:27]}  hxg5# {[%clk 0:01:57]} 0-1


[Site "https://www.chess.com"]

[Event "Titled Tuesday Blitz February 07 Early 2023"]
[White "Barwinska, Ewa"]
[Black "Qashashvili, Alexandre"]
[WhiteFideId "21833761"]
[BlackFideId "13600842"]
[WhiteElo "1914"]
[BlackElo "2505"]
[Result "1-0"]
[Round "10"]
[TimeControl "180+2"]
[Date "2023.02.07"]
[WhiteClock "0:00:16"]
[BlackClock "0:00:39"]

1. e4 {[%clk 0:02:55]}  c6 {[%clk 0:03:00]} 2. d4 {[%clk 0:02:54]}  d5 {[%clk 0:03:01]} 3. Nc3 {[%clk 0:02:54]}  dxe4 {[%clk 0:03:02]} 4. Nxe4 {[%clk 0:02:55]}  Nd7 {[%clk 0:03:02]} 5. Ng5 {[%clk 0:02:52]}  Ngf6 {[%clk 0:03:02]} 6. Bd3 {[%clk 0:02:50]}  e6 {[%clk 0:03:00]} 7. N1f3 {[%clk 0:02:38]}  h6 {[%clk 0:02:57]} 8. Nxe6 {[%clk 0:02:34]}  fxe6 {[%clk 0:02:58]} 9. Bg6+ {[%clk 0:02:33]}  Ke7 {[%clk 0:02:57]} 10. Bf4 {[%clk 0:02:33]}  Nd5 {[%clk 0:02:52]} 11. Bg3 {[%clk 0:02:32]}  N7f6 {[%clk 0:02:50]} 12. Ne5 {[%clk 0:02:24]}  Qa5+ {[%clk 0:02:49]} 13. c3 {[%clk 0:02:23]}  Bd7 {[%clk 0:02:43]} 14. O-O {[%clk 0:02:20]}  Be8 {[%clk 0:02:43]} 15. b4 {[%clk 0:02:13]}  Qd8 {[%clk 0:01:52]} 16. Qd3 {[%clk 0:02:01]}  Rg8 {[%clk 0:01:43]} 17. Rfe1 {[%clk 0:01:59]}  Qc8 {[%clk 0:01:39]} 18. f4 {[%clk 0:01:39]}  Bxg6 {[%clk 0:01:34]} 19. Nxg6+ {[%clk 0:01:35]}  Kd8 {[%clk 0:01:33]} 20. a3 {[%clk 0:01:12]}  Bd6 {[%clk 0:01:29]} 21. c4 {[%clk 0:01:11]}  Ne7 {[%clk 0:01:25]} 22. Nxe7 {[%clk 0:00:39]}  Bxe7 {[%clk 0:01:26]} 23. f5 {[%clk 0:00:29]}  exf5 {[%clk 0:01:23]} 24. d5 {[%clk 0:00:29]}  cxd5 {[%clk 0:01:17]} 25. cxd5 {[%clk 0:00:30]}  Ne4 {[%clk 0:01:08]} 26. d6 {[%clk 0:00:22]}  Bf6 {[%clk 0:01:01]} 27. Rac1 {[%clk 0:00:23]}  Qd7 {[%clk 0:00:49]} 28. Qd5 {[%clk 0:00:18]}  Re8 {[%clk 0:00:44]} 29. Rc7 {[%clk 0:00:18]}  Qe7 {[%clk 0:00:39]} 30. dxe7# {[%clk 0:00:16]} 1-0


[Site "https://www.chess.com"]

[Event "Titled Tuesday Blitz February 07 Early 2023"]
[White "lisjakzlatko1"]
[Black "Stolz, Mike"]
[BlackFideId "4617134"]
[WhiteElo "2211"]
[BlackElo "2330"]
[Result "0-1"]
[Round "10"]
[TimeControl "180+2"]
[Date "2023.02.07"]
[WhiteClock "0:00:01"]
[BlackClock "0:00:18"]

1. e4 {[%clk 0:03:00]}  c5 {[%clk 0:02:59]} 2. b4 {[%clk 0:02:59]}  cxb4 {[%clk 0:02:58]} 3. Bb2 {[%clk 0:02:59]}  d5 {[%clk 0:02:56]} 4. exd5 {[%clk 0:03:00]}  Qxd5 {[%clk 0:02:55]} 5. d4 {[%clk 0:03:00]}  b6 {[%clk 0:02:45]} 6. c4 {[%clk 0:03:00]}  Qd8 {[%clk 0:02:21]} 7. Nf3 {[%clk 0:02:55]}  Bb7 {[%clk 0:02:21]} 8. d5 {[%clk 0:02:53]}  Nf6 {[%clk 0:02:21]} 9. Nbd2 {[%clk 0:02:49]}  Nbd7 {[%clk 0:02:18]} 10. a3 {[%clk 0:02:35]}  bxa3 {[%clk 0:02:14]} 11. Bxa3 {[%clk 0:02:32]}  e6 {[%clk 0:02:10]} 12. dxe6 {[%clk 0:02:30]}  fxe6 {[%clk 0:02:10]} 13. Bxf8 {[%clk 0:02:15]}  Nxf8 {[%clk 0:02:09]} 14. Be2 {[%clk 0:01:59]}  N8d7 {[%clk 0:02:06]} 15. Ng5 {[%clk 0:01:56]}  Qe7 {[%clk 0:02:05]} 16. Bf3 {[%clk 0:01:47]}  Bxf3 {[%clk 0:02:01]} 17. Qxf3 {[%clk 0:01:44]}  O-O {[%clk 0:02:01]} 18. O-O {[%clk 0:01:39]}  Nd5 {[%clk 0:01:43]} 19. Qh5 {[%clk 0:01:21]}  g6 {[%clk 0:01:39]} 20. Qg4 {[%clk 0:01:09]}  Nf4 {[%clk 0:01:32]} 21. Rfe1 {[%clk 0:01:06]}  e5 {[%clk 0:01:24]} 22. Nde4 {[%clk 0:00:59]}  Nf6 {[%clk 0:01:18]} 23. Nxf6+ {[%clk 0:00:53]}  Qxf6 {[%clk 0:01:17]} 24. g3 {[%clk 0:00:49]}  Qxg5 {[%clk 0:01:13]} 25. Qxg5 {[%clk 0:00:41]}  Nh3+ {[%clk 0:01:13]} 26. Kg2 {[%clk 0:00:41]}  Nxg5 {[%clk 0:01:14]} 27. Rxe5 {[%clk 0:00:40]}  Rf5 {[%clk 0:01:10]} 28. Re7 {[%clk 0:00:39]}  Rf7 {[%clk 0:01:11]} 29. Re5 {[%clk 0:00:37]}  Nf3 {[%clk 0:01:10]} 30. Rb5 {[%clk 0:00:34]}  Nd4 {[%clk 0:01:09]} 31. Rxb6 {[%clk 0:00:33]}  Nc2 {[%clk 0:00:56]} 32. Ra2 {[%clk 0:00:26]}  axb6 {[%clk 0:00:55]} 33. Rxa8+ {[%clk 0:00:25]}  Kg7 {[%clk 0:00:56]} 34. Rb8 {[%clk 0:00:23]}  Rf6 {[%clk 0:00:52]} 35. f4 {[%clk 0:00:22]}  Ne3+ {[%clk 0:00:52]} 36. Kf3 {[%clk 0:00:20]}  Nxc4 {[%clk 0:00:52]} 37. Rb7+ {[%clk 0:00:20]}  Rf7 {[%clk 0:00:50]} 38. Rb8 {[%clk 0:00:19]}  Rc7 {[%clk 0:00:50]} 39. h4 {[%clk 0:00:16]}  h5 {[%clk 0:00:47]} 40. Ke4 {[%clk 0:00:15]}  Rc5 {[%clk 0:00:39]} 41. Rb7+ {[%clk 0:00:12]}  Kf6 {[%clk 0:00:40]} 42. Rb8 {[%clk 0:00:10]}  b5 {[%clk 0:00:37]} 43. Kd4 {[%clk 0:00:09]}  Rf5 {[%clk 0:00:27]} 44. Rf8+ {[%clk 0:00:08]}  Kg7 {[%clk 0:00:26]} 45. Rb8 {[%clk 0:00:07]}  Nd6 {[%clk 0:00:24]} 46. Rb6 {[%clk 0:00:05]}  Nf7 {[%clk 0:00:21]} 47. Ke4 {[%clk 0:00:03]}  Rc5 {[%clk 0:00:20]} 48. Rb7 {[%clk 0:00:02]}  Kf6 {[%clk 0:00:18]} 49. Kd4 {[%clk 0:00:02]}  Rc4+ {[%clk 0:00:19]} 50. Kd5 {[%clk 0:00:02]}  Rb4 {[%clk 0:00:19]} 51. Kc5 {[%clk 0:00:01]}  Rb1 {[%clk 0:00:18]} 0-1


[Site "https://www.chess.com"]

[Event "Titled Tuesday Blitz February 07 Early 2023"]
[White "Osiecki, Stanislaw"]
[Black "Zaksaite, Salomeja"]
[WhiteFideId "1102990"]
[BlackFideId "12801496"]
[WhiteElo "2055"]
[BlackElo "2283"]
[Result "0-1"]
[Round "10"]
[TimeControl "180+2"]
[Date "2023.02.07"]
[WhiteClock "0:00:56"]
[BlackClock "0:00:42"]

1. e4 {[%clk 0:02:48]}  c5 {[%clk 0:02:58]} 2. c3 {[%clk 0:02:44]}  d5 {[%clk 0:02:56]} 3. e5 {[%clk 0:02:43]}  Nc6 {[%clk 0:02:54]} 4. d4 {[%clk 0:02:43]}  Bf5 {[%clk 0:02:51]} 5. Bd3 {[%clk 0:02:43]}  Bxd3 {[%clk 0:02:51]} 6. Qxd3 {[%clk 0:02:43]}  e6 {[%clk 0:02:50]} 7. Ne2 {[%clk 0:02:43]}  Nge7 {[%clk 0:02:50]} 8. O-O {[%clk 0:02:44]}  Nf5 {[%clk 0:02:46]} 9. Rd1 {[%clk 0:02:44]}  h5 {[%clk 0:02:45]} 10. a3 {[%clk 0:02:42]}  c4 {[%clk 0:02:41]} 11. Qc2 {[%clk 0:02:38]}  Be7 {[%clk 0:02:41]} 12. Ng3 {[%clk 0:02:38]}  Nxg3 {[%clk 0:02:33]} 13. fxg3 {[%clk 0:02:38]}  Qb6 {[%clk 0:02:28]} 14. Nd2 {[%clk 0:02:36]}  Nxe5 {[%clk 0:02:27]} 15. Kh1 {[%clk 0:02:35]}  Nd3 {[%clk 0:02:23]} 16. Nf3 {[%clk 0:02:29]}  O-O-O {[%clk 0:02:17]} 17. Ne1 {[%clk 0:02:25]}  Nxe1 {[%clk 0:02:15]} 18. Rxe1 {[%clk 0:02:25]}  h4 {[%clk 0:02:16]} 19. g4 {[%clk 0:02:25]}  h3 {[%clk 0:02:14]} 20. g3 {[%clk 0:02:25]}  Bf6 {[%clk 0:02:04]} 21. Bf4 {[%clk 0:02:19]}  Rhe8 {[%clk 0:01:57]} 22. Rab1 {[%clk 0:02:16]}  g6 {[%clk 0:01:54]} 23. g5 {[%clk 0:02:08]}  Bg7 {[%clk 0:01:53]} 24. b3 {[%clk 0:02:06]}  cxb3 {[%clk 0:01:34]} 25. Rxb3 {[%clk 0:02:05]}  Qc6 {[%clk 0:01:33]} 26. Reb1 {[%clk 0:02:04]}  Bxd4 {[%clk 0:01:22]} 27. Rxb7 {[%clk 0:01:57]}  Bb6 {[%clk 0:01:22]} 28. R1xb6 {[%clk 0:01:50]}  axb6 {[%clk 0:01:18]} 29. Rc7+ {[%clk 0:01:50]}  Qxc7 {[%clk 0:01:17]} 30. Bxc7 {[%clk 0:01:49]}  Kxc7 {[%clk 0:01:18]} 31. Qf2 {[%clk 0:01:36]}  Rd7 {[%clk 0:01:07]} 32. Qf1 {[%clk 0:01:35]}  e5 {[%clk 0:01:04]} 33. Qxh3 {[%clk 0:01:35]}  d4 {[%clk 0:00:58]} 34. Qg4 {[%clk 0:01:22]}  d3 {[%clk 0:00:53]} 35. Qc4+ {[%clk 0:01:20]}  Kd8 {[%clk 0:00:46]} 36. Qb3 {[%clk 0:01:18]}  d2 {[%clk 0:00:45]} 37. Qxb6+ {[%clk 0:01:10]}  Ke7 {[%clk 0:00:44]} 38. Qb4+ {[%clk 0:01:01]}  Rd6 {[%clk 0:00:43]} 39. Qb7+ {[%clk 0:00:56]}  Kf8 {[%clk 0:00:42]} 0-1


[Site "https://www.chess.com"]

[Event "Titled Tuesday Blitz February 07 Early 2023"]
[White "Sabar, Ethmane Daouda"]
[Black "Necula, Iulian"]
[WhiteFideId "19600097"]
[BlackFideId "1232380"]
[WhiteElo "2040"]
[BlackElo "1851"]
[Result "0-1"]
[Round "10"]
[TimeControl "180+2"]
[Date "2023.02.07"]
[WhiteClock "0:02:19"]
[BlackClock "0:02:14"]

1. e4 {[%clk 0:02:59]}  c5 {[%clk 0:02:59]} 2. a3 {[%clk 0:02:54]}  g6 {[%clk 0:02:58]} 3. c3 {[%clk 0:02:49]}  Bg7 {[%clk 0:02:58]} 4. b4 {[%clk 0:02:49]}  d6 {[%clk 0:02:56]} 5. bxc5 {[%clk 0:02:49]}  dxc5 {[%clk 0:02:56]} 6. Nf3 {[%clk 0:02:47]}  Nc6 {[%clk 0:02:55]} 7. Bc4 {[%clk 0:02:44]}  Nf6 {[%clk 0:02:54]} 8. d3 {[%clk 0:02:43]}  O-O {[%clk 0:02:53]} 9. O-O {[%clk 0:02:43]}  a6 {[%clk 0:02:52]} 10. a4 {[%clk 0:02:41]}  Bg4 {[%clk 0:02:50]} 11. Nbd2 {[%clk 0:02:40]}  Ne5 {[%clk 0:02:48]} 12. h3 {[%clk 0:02:32]}  Bxf3 {[%clk 0:02:35]} 13. gxf3 {[%clk 0:02:32]}  Nxd3 {[%clk 0:02:23]} 14. Ba3 {[%clk 0:02:31]}  b6 {[%clk 0:02:18]} 15. Qc2 {[%clk 0:02:18]}  Nf4 {[%clk 0:02:15]} 16. Be2 {[%clk 0:02:19]}  Nxe2+ {[%clk 0:02:14]} 0-1


[Site "https://www.chess.com"]

[Event "Titled Tuesday Blitz February 07 Early 2023"]
[White "Cramling Bellon, Anna"]
[Black "Cueto, Jonny"]
[WhiteFideId "32009232"]
[BlackFideId "3300145"]
[WhiteElo "2043"]
[BlackElo "2122"]
[Result "1-0"]
[Round "10"]
[TimeControl "180+2"]
[Date "2023.02.07"]
[WhiteClock "0:00:40"]
[BlackClock "0:00:05"]

1. d4 {[%clk 0:03:00]}  e6 {[%clk 0:02:59]} 2. c4 {[%clk 0:02:59]}  Nf6 {[%clk 0:02:58]} 3. Nc3 {[%clk 0:02:58]}  Bb4 {[%clk 0:02:57]} 4. Qc2 {[%clk 0:02:50]}  b6 {[%clk 0:02:56]} 5. e4 {[%clk 0:02:48]}  Bb7 {[%clk 0:02:51]} 6. Bd3 {[%clk 0:02:47]}  c5 {[%clk 0:02:46]} 7. d5 {[%clk 0:02:46]}  exd5 {[%clk 0:02:44]} 8. exd5 {[%clk 0:02:43]}  O-O {[%clk 0:02:44]} 9. Ne2 {[%clk 0:02:43]}  Re8 {[%clk 0:02:38]} 10. O-O {[%clk 0:02:43]}  Bxc3 {[%clk 0:02:35]} 11. Nxc3 {[%clk 0:02:43]}  d6 {[%clk 0:02:29]} 12. Bg5 {[%clk 0:02:42]}  Nbd7 {[%clk 0:02:26]} 13. Bxh7+ {[%clk 0:02:42]}  Kh8 {[%clk 0:01:58]} 14. Bf5 {[%clk 0:02:41]}  Bc8 {[%clk 0:01:53]} 15. Rae1 {[%clk 0:02:38]}  Ne5 {[%clk 0:01:46]} 16. f4 {[%clk 0:02:30]}  Nxc4 {[%clk 0:01:37]} 17. Bxf6 {[%clk 0:02:22]}  Rxe1 {[%clk 0:01:29]} 18. Bxd8 {[%clk 0:02:17]}  Rxf1+ {[%clk 0:01:24]} 19. Kxf1 {[%clk 0:02:05]}  Ne3+ {[%clk 0:01:25]} 20. Kf2 {[%clk 0:02:00]}  Nxc2 {[%clk 0:01:24]} 21. Bxc2 {[%clk 0:02:01]}  Bd7 {[%clk 0:01:12]} 22. Be7 {[%clk 0:01:55]}  Re8 {[%clk 0:00:12]} 23. Bxd6 {[%clk 0:01:55]}  a5 {[%clk 0:00:11]} 24. Bc7 {[%clk 0:01:41]}  b5 {[%clk 0:00:11]} 25. Bxa5 {[%clk 0:01:42]}  b4 {[%clk 0:00:11]} 26. Ne4 {[%clk 0:01:41]}  Ra8 {[%clk 0:00:11]} 27. Nxc5 {[%clk 0:01:13]}  Rxa5 {[%clk 0:00:07]} 28. Nxd7 {[%clk 0:01:13]}  Rxa2 {[%clk 0:00:08]} 29. Ke3 {[%clk 0:01:05]}  Rxb2 {[%clk 0:00:08]} 30. Be4 {[%clk 0:00:50]}  b3 {[%clk 0:00:06]} 31. Ne5 {[%clk 0:00:46]}  Ra2 {[%clk 0:00:05]} 32. d6 {[%clk 0:00:40]} 1-0


[Site "https://www.chess.com"]

[Event "Titled Tuesday Blitz February 07 Early 2023"]
[White "Hon, Eric"]
[Black "Burdalev, Kirill"]
[WhiteFideId "2097117"]
[BlackFideId "14121913"]
[WhiteElo "1897"]
[BlackElo "2368"]
[Result "0-1"]
[Round "10"]
[TimeControl "180+2"]
[Date "2023.02.07"]
[WhiteClock "0:00:56"]
[BlackClock "0:00:21"]

1. e4 {[%clk 0:02:53]}  c5 {[%clk 0:02:58]} 2. Nf3 {[%clk 0:02:52]}  d6 {[%clk 0:02:53]} 3. d4 {[%clk 0:02:52]}  cxd4 {[%clk 0:02:51]} 4. Nxd4 {[%clk 0:02:53]}  Nf6 {[%clk 0:02:46]} 5. Nc3 {[%clk 0:02:53]}  g6 {[%clk 0:02:44]} 6. f3 {[%clk 0:02:53]}  Bg7 {[%clk 0:02:43]} 7. Be3 {[%clk 0:02:53]}  Nc6 {[%clk 0:02:41]} 8. Nxc6 {[%clk 0:02:53]}  bxc6 {[%clk 0:02:40]} 9. Bc4 {[%clk 0:02:54]}  O-O {[%clk 0:02:39]} 10. O-O {[%clk 0:02:52]}  c5 {[%clk 0:02:32]} 11. Qd2 {[%clk 0:02:51]}  Re8 {[%clk 0:02:23]} 12. Bb5 {[%clk 0:02:48]}  Bd7 {[%clk 0:02:21]} 13. Bxd7 {[%clk 0:02:45]}  Qxd7 {[%clk 0:02:20]} 14. Rab1 {[%clk 0:02:45]}  Rab8 {[%clk 0:02:18]} 15. b3 {[%clk 0:02:44]}  Rec8 {[%clk 0:02:04]} 16. Nd5 {[%clk 0:02:37]}  Nxd5 {[%clk 0:01:41]} 17. exd5 {[%clk 0:02:38]}  e5 {[%clk 0:01:40]} 18. dxe6 {[%clk 0:02:37]}  Qxe6 {[%clk 0:01:30]} 19. Rfe1 {[%clk 0:02:35]}  Qd7 {[%clk 0:01:25]} 20. Kh1 {[%clk 0:02:33]}  d5 {[%clk 0:01:23]} 21. c3 {[%clk 0:02:31]}  d4 {[%clk 0:01:15]} 22. Bf4 {[%clk 0:02:25]}  Rb6 {[%clk 0:01:14]} 23. cxd4 {[%clk 0:02:18]}  cxd4 {[%clk 0:01:11]} 24. Rbc1 {[%clk 0:02:14]}  Rbc6 {[%clk 0:01:00]} 25. Rxc6 {[%clk 0:02:13]}  Qxc6 {[%clk 0:00:55]} 26. Qa5 {[%clk 0:02:06]}  d3 {[%clk 0:00:46]} 27. Bd2 {[%clk 0:01:58]}  Bc3 {[%clk 0:00:29]} 28. Bxc3 {[%clk 0:01:52]}  Qxc3 {[%clk 0:00:28]} 29. Re8+ {[%clk 0:01:32]}  Kg7 {[%clk 0:00:26]} 30. Qxc3+ {[%clk 0:01:01]}  Rxc3 {[%clk 0:00:25]} 31. h4 {[%clk 0:00:56]}  d2 {[%clk 0:00:21]} 0-1


[Site "https://www.chess.com"]

[Event "Titled Tuesday Blitz February 07 Early 2023"]
[White "Perez Ponsa, Federico"]
[Black "Daneshvar, Bardiya"]
[WhiteFideId "117927"]
[BlackFideId "12576468"]
[WhiteElo "2532"]
[BlackElo "2540"]
[Result "1-0"]
[Round "11"]
[TimeControl "180+2"]
[Date "2023.02.07"]
[WhiteClock "0:00:17"]
[BlackClock "0:00:04"]

1. e4 {[%clk 0:03:00]}  c6 {[%clk 0:02:59]} 2. d4 {[%clk 0:02:57]}  d5 {[%clk 0:03:00]} 3. e5 {[%clk 0:02:58]}  Bf5 {[%clk 0:03:00]} 4. h4 {[%clk 0:02:58]}  h5 {[%clk 0:03:00]} 5. Bd3 {[%clk 0:02:58]}  Bxd3 {[%clk 0:03:00]} 6. Qxd3 {[%clk 0:02:59]}  Qa5+ {[%clk 0:02:59]} 7. Nd2 {[%clk 0:02:58]}  e6 {[%clk 0:02:59]} 8. Nf3 {[%clk 0:02:58]}  Nh6 {[%clk 0:02:59]} 9. c3 {[%clk 0:02:48]}  Qa6 {[%clk 0:02:52]} 10. Qxa6 {[%clk 0:02:45]}  Nxa6 {[%clk 0:02:52]} 11. b4 {[%clk 0:02:45]}  Be7 {[%clk 0:02:52]} 12. Nf1 {[%clk 0:02:44]}  Nf5 {[%clk 0:02:51]} 13. a4 {[%clk 0:02:38]}  Nc7 {[%clk 0:02:50]} 14. Ne3 {[%clk 0:02:39]}  Nxe3 {[%clk 0:02:47]} 15. Bxe3 {[%clk 0:02:40]}  a5 {[%clk 0:02:47]} 16. Bd2 {[%clk 0:02:24]}  axb4 {[%clk 0:02:40]} 17. cxb4 {[%clk 0:02:25]}  f6 {[%clk 0:02:40]} 18. Ke2 {[%clk 0:02:23]}  Kf7 {[%clk 0:02:35]} 19. Ra2 {[%clk 0:02:20]}  Ra7 {[%clk 0:02:18]} 20. Rha1 {[%clk 0:02:19]}  Rha8 {[%clk 0:02:16]} 21. Kd3 {[%clk 0:02:16]}  Na6 {[%clk 0:02:02]} 22. Rb1 {[%clk 0:02:14]}  Nb8 {[%clk 0:01:59]} 23. Rba1 {[%clk 0:02:08]}  Nd7 {[%clk 0:01:57]} 24. g3 {[%clk 0:02:05]}  Nb6 {[%clk 0:01:51]} 25. a5 {[%clk 0:02:04]}  Nc4 {[%clk 0:01:51]} 26. Bc3 {[%clk 0:02:04]}  b6 {[%clk 0:01:26]} 27. axb6 {[%clk 0:01:26]}  Rxa2 {[%clk 0:01:18]} 28. Rxa2 {[%clk 0:01:27]}  Nxb6 {[%clk 0:01:01]} 29. Ra5 {[%clk 0:01:22]}  Rb8 {[%clk 0:00:35]} 30. Nd2 {[%clk 0:01:16]}  fxe5 {[%clk 0:00:32]} 31. dxe5 {[%clk 0:01:16]}  Nd7 {[%clk 0:00:32]} 32. Ra7 {[%clk 0:01:16]}  Ke8 {[%clk 0:00:31]} 33. Rc7 {[%clk 0:00:51]}  Bxb4 {[%clk 0:00:23]} 34. Rxc6 {[%clk 0:00:51]}  Bxc3 {[%clk 0:00:20]} 35. Kxc3 {[%clk 0:00:52]}  Ke7 {[%clk 0:00:20]} 36. f4 {[%clk 0:00:45]}  Ra8 {[%clk 0:00:20]} 37. Nb3 {[%clk 0:00:42]}  g6 {[%clk 0:00:16]} 38. Nd4 {[%clk 0:00:40]}  Nf8 {[%clk 0:00:13]} 39. Rc7+ {[%clk 0:00:40]}  Ke8 {[%clk 0:00:12]} 40. Nb5 {[%clk 0:00:34]}  Ra1 {[%clk 0:00:09]} 41. Nd6+ {[%clk 0:00:31]}  Kd8 {[%clk 0:00:09]} 42. Rc8+ {[%clk 0:00:32]}  Ke7 {[%clk 0:00:09]} 43. Re8+ {[%clk 0:00:33]}  Kd7 {[%clk 0:00:09]} 44. Rxf8 {[%clk 0:00:34]}  Ra3+ {[%clk 0:00:09]} 45. Kd4 {[%clk 0:00:33]}  Rxg3 {[%clk 0:00:10]} 46. Rf7+ {[%clk 0:00:33]}  Kc6 {[%clk 0:00:11]} 47. Rf6 {[%clk 0:00:21]}  Kd7 {[%clk 0:00:08]} 48. Nb7 {[%clk 0:00:20]}  Rg4 {[%clk 0:00:04]} 49. Nc5+ {[%clk 0:00:20]}  Kc6 {[%clk 0:00:04]} 50. Rxe6+ {[%clk 0:00:20]}  Kb5 {[%clk 0:00:04]} 51. Rf6 {[%clk 0:00:20]}  Rg1 {[%clk 0:00:04]} 52. Nd3 {[%clk 0:00:17]} 1-0


[Site "https://www.chess.com"]

[Event "Titled Tuesday Blitz February 07 Early 2023"]
[White "Kamsky, Gata"]
[Black "Kukhmazov, Arsen"]
[WhiteFideId "2000024"]
[BlackFideId "24108260"]
[WhiteElo "2665"]
[BlackElo "2512"]
[Result "1-0"]
[Round "11"]
[TimeControl "180+2"]
[Date "2023.02.07"]
[WhiteClock "0:00:06"]
[BlackClock "0:00:04"]

1. d4 {[%clk 0:03:00]}  d5 {[%clk 0:03:00]} 2. Bf4 {[%clk 0:02:58]}  Nf6 {[%clk 0:02:59]} 3. e3 {[%clk 0:02:58]}  c5 {[%clk 0:02:59]} 4. c3 {[%clk 0:02:57]}  Nc6 {[%clk 0:03:00]} 5. Nd2 {[%clk 0:02:57]}  Bf5 {[%clk 0:02:59]} 6. Ngf3 {[%clk 0:02:56]}  Qb6 {[%clk 0:02:59]} 7. dxc5 {[%clk 0:02:56]}  Qxc5 {[%clk 0:02:51]} 8. Qb3 {[%clk 0:02:51]}  Na5 {[%clk 0:02:41]} 9. Bb5+ {[%clk 0:02:22]}  Bd7 {[%clk 0:02:29]} 10. Bxd7+ {[%clk 0:02:21]}  Nxd7 {[%clk 0:02:30]} 11. Qa4 {[%clk 0:02:20]}  Nc6 {[%clk 0:02:30]} 12. Nb3 {[%clk 0:02:13]}  Qb6 {[%clk 0:02:30]} 13. O-O {[%clk 0:01:57]}  e6 {[%clk 0:02:30]} 14. Rfd1 {[%clk 0:01:47]}  Be7 {[%clk 0:02:29]} 15. e4 {[%clk 0:01:38]}  dxe4 {[%clk 0:02:23]} 16. Nfd2 {[%clk 0:01:28]}  e5 {[%clk 0:01:53]} 17. Be3 {[%clk 0:01:23]}  Qc7 {[%clk 0:01:53]} 18. Nxe4 {[%clk 0:01:15]}  O-O {[%clk 0:01:54]} 19. Qc4 {[%clk 0:01:05]}  Rac8 {[%clk 0:01:31]} 20. a4 {[%clk 0:01:03]}  h6 {[%clk 0:01:11]} 21. Rd2 {[%clk 0:00:55]}  Rcd8 {[%clk 0:01:00]} 22. a5 {[%clk 0:00:52]}  Qc8 {[%clk 0:00:44]} 23. Rad1 {[%clk 0:00:49]}  Ndb8 {[%clk 0:00:45]} 24. h3 {[%clk 0:00:34]}  Na6 {[%clk 0:00:43]} 25. Rxd8 {[%clk 0:00:15]}  Rxd8 {[%clk 0:00:44]} 26. Rxd8+ {[%clk 0:00:14]}  Qxd8 {[%clk 0:00:45]} 27. Qb5 {[%clk 0:00:14]}  Qc8 {[%clk 0:00:39]} 28. g4 {[%clk 0:00:13]}  Bd8 {[%clk 0:00:26]} 29. Nd6 {[%clk 0:00:12]}  Qd7 {[%clk 0:00:16]} 30. Qxb7 {[%clk 0:00:11]}  Qxd6 {[%clk 0:00:15]} 31. Qxa6 {[%clk 0:00:11]}  Qd1+ {[%clk 0:00:15]} 32. Kg2 {[%clk 0:00:11]}  Qd5+ {[%clk 0:00:15]} 33. Kg1 {[%clk 0:00:11]}  Qd1+ {[%clk 0:00:13]} 34. Kg2 {[%clk 0:00:11]}  Qd5+ {[%clk 0:00:13]} 35. Kg1 {[%clk 0:00:08]}  e4 {[%clk 0:00:06]} 36. Nd2 {[%clk 0:00:07]}  Ne5 {[%clk 0:00:07]} 37. Qxa7 {[%clk 0:00:06]}  Bh4 {[%clk 0:00:04]} 38. Qd4 {[%clk 0:00:05]}  Qe6 {[%clk 0:00:02]} 39. Qxe4 {[%clk 0:00:05]}  Qd6 {[%clk 0:00:02]} 40. Bd4 {[%clk 0:00:05]}  Nc6 {[%clk 0:00:02]} 41. Nc4 {[%clk 0:00:05]}  Qd7 {[%clk 0:00:02]} 42. Be3 {[%clk 0:00:05]}  Qd1+ {[%clk 0:00:02]} 43. Kg2 {[%clk 0:00:06]}  Ne7 {[%clk 0:00:01]} 44. a6 {[%clk 0:00:06]}  Qd7 {[%clk 0:00:02]} 45. Nb6 {[%clk 0:00:05]}  Qa7 {[%clk 0:00:01]} 46. Nd5 {[%clk 0:00:04]}  Qd7 {[%clk 0:00:02]} 47. Nxe7+ {[%clk 0:00:04]}  Bxe7 {[%clk 0:00:03]} 48. Qb7 {[%clk 0:00:04]}  Qd6 {[%clk 0:00:02]} 49. a7 {[%clk 0:00:05]}  Kh7 {[%clk 0:00:03]} 50. a8=Q {[%clk 0:00:05]}  Bf6 {[%clk 0:00:04]} 51. Qe4+ {[%clk 0:00:05]}  g6 {[%clk 0:00:04]} 52. Qad5 {[%clk 0:00:06]} 1-0


[Site "https://www.chess.com"]